bitfinex-derivatives/quotes_BTCF0:USTF0_20241210
["timestamp","ask_amount","ask_price","bid_price","bid_amount"]
[1733799231866,0.0695,97327.0,97319.0,0.051348]
[1733799232057,0.412146,97324.0,97315.0,0.3608]
[1733799232252,0.05135,97318.0,97315.0,0.3608]
[1733799235864,0.05135,97318.0,97309.0,0.051353]
[1733799236459,0.05135,97318.0,97306.0,1.87034187]
[1733799236665,0.412155,97307.0,97305.0,7.227e-05]
[1733799236864,0.0667,97306.0,97305.0,7.227e-05]
[1733799237170,0.1322,97306.0,97305.0,7.227e-05]
[1733799242262,0.14152629,97306.0,97305.0,7.227e-05]
[1733799244761,0.05136,97298.0,97288.0,0.3608]
[1733799244965,0.09203713,97299.0,97294.0,0.051362]
[1733799245159,0.14339513,97302.0,97297.0,0.3608]
[1733799245373,0.05136,97299.0,97297.0,0.3608]
[1733799245571,0.05136,97299.0,97298.0,1.5]
[1733799246269,0.10142471,97304.0,97294.0,0.051362]
[1733799246477,0.19346184,97304.0,97294.0,0.051362]
[1733799246775,0.05136,97298.0,97295.0,1.5]
[1733799246967,0.09203713,97303.0,97288.0,0.3608]
[1733799247168,0.051366,97287.0,97284.0,8.944e-05]
[1733799247369,0.051367,97285.0,97284.0,8.944e-05]
[1733799248561,0.14340413,97285.0,97284.0,8.944e-05]
[1733799248773,0.051367,97285.0,97284.0,8.944e-05]
[1733799249266,0.1434532,97285.0,97284.0,8.944e-05]
[1733799249582,0.051367,97285.0,97284.0,8.944e-05]
[1733799249879,9.694e-05,97286.0,97284.0,8.944e-05]
[1733799250081,9.694e-05,97286.0,97284.0,0.05145644]
[1733799251265,9.694e-05,97286.0,97284.0,0.41225644]
[1733799251672,9.694e-05,97286.0,97284.0,0.2452017]
[1733799252278,9.694e-05,97286.0,97284.0,0.2965687]
[1733799252776,9.694e-05,97286.0,97284.0,0.48065703]
[1733799252977,9.694e-05,97286.0,97285.0,1.68408833]
[1733799253169,9.694e-05,97286.0,97285.0,1.5]
[1733799253973,0.05146294,97286.0,97282.0,0.00011231]
[1733799254474,9.694e-05,97286.0,97282.0,0.00011231]
[1733799254872,9.694e-05,97286.0,97282.0,0.05148031]
[1733799255177,9.694e-05,97286.0,97284.0,0.3608]
[1733799255575,9.694e-05,97286.0,97282.0,0.00011231]
[1733799255576,0.051368,97283.0,97282.0,0.00011231]
[1733799257671,0.051378,97264.0,97258.0,0.051381]
[1733799257981,0.051378,97264.0,97259.0,0.3608]
[1733799259681,0.3608,97261.0,97256.0,0.1288]
[1733799259886,0.051381,97257.0,97255.0,7.761e-05]
[1733799261878,0.3608,97261.0,97255.0,7.761e-05]
[1733799262183,0.41305401,97272.0,97261.0,0.05009754]
[1733799262381,0.10142471,97271.0,97255.0,7.761e-05]
[1733799262589,0.09214979,97268.0,97255.0,7.761e-05]
[1733799262778,0.05138,97261.0,97255.0,7.761e-05]
[1733799263681,0.09214979,97269.0,97255.0,7.761e-05]
[1733799263682,0.051382,97256.0,97255.0,7.761e-05]
[1733799265986,0.412182,97256.0,97255.0,7.761e-05]
[1733799266380,0.051382,97256.0,97255.0,7.761e-05]
[1733799268490,0.051378,97264.0,97255.0,7.761e-05]
[1733799269489,0.10142471,97265.0,97258.0,0.051381]
[1733799269893,0.09214979,97270.0,97265.0,0.051377]
[1733799270189,0.05137,97279.0,97269.0,0.051375]
[1733799270394,0.05137,97279.0,97272.0,0.3608]
[1733799270582,0.36168001,97283.0,97275.0,0.051371]
[1733799270784,0.36168001,97283.0,97278.0,0.05137]
[1733799270988,0.36168001,97283.0,97273.0,0.0606]
[1733799271194,0.051373,97274.0,97272.0,0.18432768]
[1733799271393,0.051373,97274.0,97270.0,1.50052]
[1733799271394,0.09214979,97274.0,97271.0,0.18432768]
[1733799271582,0.00154252,97281.0,97271.0,0.18432768]
[1733799271583,0.14352279,97272.0,97271.0,0.18432768]
[1733799271995,0.051373,97272.0,97271.0,0.18432768]
[1733799272185,0.14349321,97272.0,97271.0,0.18432768]
[1733799272390,0.051375,97270.0,97260.0,0.18432768]
[1733799272590,0.15279971,97270.0,97260.0,0.18432768]
[1733799272790,0.15279971,97270.0,97258.0,0.0606]
[1733799272791,0.15279971,97270.0,97261.0,0.18432768]
[1733799273096,0.3608,97266.0,97258.0,0.0606]
[1733799273302,0.10142471,97270.0,97258.0,0.0606]
[1733799273303,0.051376,97268.0,97258.0,0.0606]
[1733799273493,0.051376,97268.0,97259.0,0.18432768]
[1733799273690,0.051376,97268.0,97261.0,0.3608]
[1733799275205,0.051376,97268.0,97260.0,0.18432768]
[1733799275598,0.051376,97268.0,97261.0,0.18432768]
[1733799275805,9.694e-05,97286.0,97265.0,0.3608]
[1733799275999,9.694e-05,97286.0,97270.0,0.10142471]
[1733799276205,9.694e-05,97286.0,97276.0,0.051371]
[1733799276500,0.09215319,97283.0,97276.0,0.051371]
[1733799276901,9.694e-05,97286.0,97277.0,0.18432768]
[1733799277108,0.09226342,97286.0,97277.0,0.18432768]
[1733799277307,0.09226342,97286.0,97278.0,1.5]
[1733799277601,0.09226342,97286.0,97278.0,1.68432768]
[1733799277805,0.09226342,97286.0,97278.0,1.73569768]
[1733799278003,0.09226342,97286.0,97278.0,1.68432768]
[1733799278004,9.694e-05,97286.0,97278.0,1.68432768]
[1733799278208,9.694e-05,97286.0,97280.0,0.051369]
[1733799278410,9.694e-05,97286.0,97278.0,0.18484768]
[1733799278702,0.0589,97285.0,97271.0,0.43008327]
[1733799278907,0.051369,97280.0,97271.0,0.24575127]
[1733799279101,0.14353548,97280.0,97268.0,0.184332]
[1733799279504,0.051369,97280.0,97268.0,0.184332]
[1733799279706,0.14353548,97280.0,97267.0,0.184332]
[1733799279902,0.051369,97280.0,97268.0,0.184332]
[1733799280102,0.051369,97280.0,97269.0,0.184332]
[1733799280308,0.051369,97280.0,97268.0,0.184332]
[1733799280503,0.051369,97280.0,97269.0,0.184332]
[1733799281014,0.051369,97280.0,97270.0,0.051374]
[1733799281703,0.051369,97280.0,97269.0,0.184332]
[1733799281704,0.051369,97280.0,97269.0,0.07148069]
[1733799281911,0.051369,97280.0,97270.0,0.051374]
[1733799282104,0.00154252,97281.0,97276.0,0.051371]
[1733799283600,0.09216648,97280.0,97276.0,0.051371]
[1733799283805,0.09216648,97279.0,97276.0,0.051371]
[1733799284309,0.09216648,97280.0,97276.0,0.051371]
[1733799284804,0.00154252,97281.0,97276.0,0.051371]
[1733799285405,0.09216648,97283.0,97276.0,0.051371]
[1733799286314,0.09216648,97282.0,97276.0,0.051371]
[1733799286615,0.09216648,97283.0,97276.0,0.051371]
[1733799287011,0.09216648,97282.0,97276.0,0.051371]
[1733799287413,0.09216648,97283.0,97276.0,0.051371]
[1733799287807,0.09216648,97283.0,97271.0,0.24575127]
[1733799288018,9.694e-05,97286.0,97271.0,0.24575127]
[1733799288019,0.09216648,97280.0,97271.0,0.24575127]
[1733799288212,0.09216648,97280.0,97268.0,0.051375]
[1733799288513,0.09216648,97277.0,97268.0,0.051375]
[1733799289023,0.051371,97277.0,97268.0,0.051375]
[1733799289903,0.14353748,97277.0,97268.0,0.051375]
[1733799290513,0.09216648,97273.0,97268.0,0.051375]
[1733799290818,0.051371,97277.0,97268.0,0.051375]
[1733799290819,0.09216648,97272.0,97268.0,0.051375]
[1733799292115,0.09216648,97272.0,97266.0,1.50963309]
[1733799292312,0.15166648,97271.0,97266.0,1.50907309]
[1733799292506,0.09216648,97269.0,97266.0,1.50907309]
[1733799292709,0.09216648,97268.0,97266.0,1.50907309]
[1733799292913,0.09216648,97268.0,97266.0,0.00907309]
[1733799293113,0.09216648,97268.0,97260.0,0.24575127]
[1733799293308,0.051377,97266.0,97261.0,1.5]
[1733799293510,0.051377,97266.0,97261.0,1.5006]
[1733799294217,0.0596,97270.0,97261.0,1.5006]
[1733799294409,0.0596,97270.0,97262.0,0.051378]
[1733799294913,0.18258427,97270.0,97262.0,0.051378]
[1733799295114,0.0596,97270.0,97262.0,0.051378]
[1733799295436,0.18258427,97270.0,97262.0,0.051378]
[1733799295919,0.12298427,97269.0,97262.0,0.051378]
[1733799296313,0.12298427,97269.0,97264.0,0.01168933]
[1733799296515,0.12298427,97268.0,97262.0,0.051378]
[1733799296820,0.09231603,97263.0,97262.0,0.051378]
[1733799297417,0.12298427,97267.0,97262.0,0.051378]
[1733799297920,0.00141203,97265.0,97262.0,0.051378]
[1733799298514,0.00141203,97265.0,97264.0,0.24575127]
[1733799298714,0.00141203,97265.0,97263.0,0.24575127]
[1733799299114,0.09377185,97264.0,97262.0,0.051378]
[1733799299316,0.09409258,97263.0,97262.0,0.051378]
[1733799299514,0.09409258,97263.0,97262.0,0.06268245]
[1733799300623,0.00173274,97263.0,97262.0,0.06268245]
[1733799300926,0.00173274,97263.0,97262.0,0.34105211]
[1733799301126,0.00173274,97263.0,97262.0,0.40499217]
[1733799301517,0.00173274,97263.0,97262.0,0.81834341]
[1733799302430,0.23315327,97281.0,97262.0,0.81834341]
[1733799302431,0.09236005,97281.0,97262.0,1.03018482]
[1733799302725,9.694e-05,97286.0,97285.0,0.051367]
[1733799302918,9.694e-05,97286.0,97285.0,0.39314816]
[1733799303116,9.694e-05,97286.0,97285.0,1.89314816]
[1733799303522,9.694e-05,97286.0,97285.0,1.93810841]
[1733799303725,0.09236005,97305.0,97285.0,1.89314816]
[1733799304023,0.09236005,97307.0,97305.0,0.051356]
[1733799304325,0.12298427,97320.0,97301.0,0.24610567]
[1733799304515,0.09220474,97320.0,97316.0,0.3608]
[1733799304713,9.5e-05,97318.0,97317.0,1.55135]
[1733799308525,0.0015416,97336.0,97317.0,1.80012414]
[1733799308729,0.0015416,97336.0,97335.0,0.05134]
[1733799308931,0.09220474,97340.0,97339.0,0.051338]
[1733799309227,0.09220474,97342.0,97334.0,0.3608]
[1733799309421,9.338e-05,97341.0,97334.0,0.3608]
[1733799309824,0.006,97336.0,97334.0,0.3608]
[1733799310030,0.05734,97336.0,97334.0,0.3608]
[1733799310325,0.006,97336.0,97334.0,1.5]
[1733799310732,0.006,97336.0,97332.0,0.051342]
[1733799311229,0.015,97336.0,97334.0,0.001]
[1733799312018,0.009,97336.0,97334.0,0.001]
[1733799312331,0.009,97336.0,97334.0,0.002]
[1733799312523,0.009,97336.0,97329.0,1.38976117]
[1733799312828,0.009,97336.0,97332.0,0.051342]
[1733799313027,0.009,97336.0,97329.0,0.01155615]
[1733799313028,9.338e-05,97341.0,97329.0,0.01155615]
[1733799313327,9.338e-05,97341.0,97334.0,0.001]
[1733799313328,0.016,97336.0,97334.0,0.001]
[1733799314022,0.016,97336.0,97334.0,0.05234]
[1733799314222,0.016,97336.0,97334.0,0.001]
[1733799314628,0.06734,97336.0,97334.0,0.001]
[1733799314836,0.06734,97336.0,97329.0,0.001]
[1733799314837,0.051343,97330.0,97329.0,0.001]
[1733799315329,0.412143,97330.0,97329.0,0.001]
[1733799315829,0.412143,97330.0,97319.0,0.3608]
[1733799315830,0.051348,97321.0,97319.0,0.3608]
[1733799316131,0.051348,97321.0,97315.0,0.00154088]
[1733799316325,0.0619,97329.0,97315.0,0.00154088]
[1733799316326,0.051349,97318.0,97315.0,0.00154088]
[1733799316528,0.051346,97325.0,97315.0,0.00154088]
[1733799316828,0.3608,97322.0,97315.0,0.00154088]
[1733799317134,0.3608,97318.0,97315.0,0.00154088]
[1733799317320,0.001,97321.0,97315.0,0.00154088]
[1733799317730,0.051348,97322.0,97315.0,0.00154088]
[1733799318128,0.051348,97321.0,97315.0,0.00154088]
[1733799318631,0.004,97318.0,97315.0,0.00154088]
[1733799320033,0.4254,97318.0,97315.0,0.00154088]
[1733799320229,0.4214,97318.0,97315.0,0.00154088]
[1733799320922,0.004,97321.0,97318.0,0.051349]
[1733799321225,0.0619,97329.0,97318.0,0.051349]
[1733799321429,0.0619,97329.0,97317.0,0.36092414]
[1733799321631,0.113244,97329.0,97319.0,1.5]
[1733799322234,0.002,97321.0,97319.0,1.5]
[1733799322422,0.002,97321.0,97319.0,1.551349]
[1733799323022,0.002,97329.0,97319.0,1.5]
[1733799323228,0.002,97329.0,97328.0,0.3608]
[1733799323628,0.006,97329.0,97328.0,0.3608]
[1733799324229,0.002,97329.0,97328.0,0.3608]
[1733799324627,0.00163485,97341.0,97328.0,0.3608]
[1733799324930,0.00163485,97341.0,97340.0,0.3608]
[1733799325129,0.051341,97335.0,97319.0,0.36132]
[1733799325336,0.051341,97335.0,97319.0,0.3608]
[1733799325630,0.051344,97328.0,97320.0,1.5]
[1733799325831,0.0632,97327.0,97319.0,0.3608]
[1733799326037,0.051348,97321.0,97317.0,0.00012414]
[1733799326939,0.1277,97327.0,97317.0,0.00012414]
[1733799327123,0.1277,97327.0,97319.0,0.3608]
[1733799327124,0.0632,97327.0,97319.0,0.3608]
[1733799327324,0.0632,97327.0,97321.0,0.051347]
[1733799327835,0.00109156,97324.0,97323.0,0.051347]
[1733799329057,0.00241223,97324.0,97320.0,0.0599]
[1733799329532,0.00241223,97324.0,97319.0,0.72212]
[1733799329736,0.00241223,97324.0,97319.0,0.7216]
[1733799330044,0.00141223,97322.0,97319.0,0.7216]
[1733799330436,0.175848,97321.0,97319.0,0.7216]
[1733799330644,0.0616,97320.0,97319.0,0.7216]
[1733799331036,0.06301223,97320.0,97319.0,0.7216]
[1733799331532,0.06301223,97320.0,97317.0,0.00012414]
[1733799331733,0.051349,97319.0,97317.0,0.00012414]
[1733799332244,0.00141223,97318.0,97317.0,0.00012414]
[1733799332735,0.09361697,97318.0,97317.0,0.00012414]
[1733799333439,0.00141223,97318.0,97317.0,0.00012414]
[1733799333841,0.00441223,97318.0,97317.0,0.00012414]
[1733799334746,0.00641223,97318.0,97317.0,0.00012414]
[1733799337543,0.00741223,97318.0,97317.0,0.00012414]
[1733799337838,0.00541223,97318.0,97317.0,0.00012414]
[1733799338048,0.00741223,97318.0,97317.0,0.00012414]
[1733799338437,0.09959074,97318.0,97317.0,0.00012414]
[1733799338631,0.09958099,97318.0,97317.0,0.00012414]
[1733799338837,0.10058099,97318.0,97317.0,0.00012414]
[1733799339341,0.00841223,97318.0,97317.0,0.00012414]
[1733799339743,0.00441223,97318.0,97317.0,0.00012414]
[1733799339942,0.10159563,97318.0,97317.0,0.00012414]
[1733799340145,0.00941223,97318.0,97317.0,0.00012414]
[1733799340441,0.05135,97317.0,97287.0,0.24610567]
[1733799340639,0.05135,97317.0,97283.0,0.24610567]
[1733799340640,0.051365,97289.0,97283.0,0.24610567]
[1733799340839,0.051365,97289.0,97281.0,0.29793467]
[1733799341042,0.051365,97289.0,97286.0,1.5]
[1733799341243,0.00141223,97288.0,97286.0,1.5]
[1733799341746,0.00141223,97288.0,97285.0,0.0130087]
[1733799342041,0.00141223,97288.0,97285.0,0.00354179]
[1733799342237,0.00141223,97287.0,97285.0,0.00354179]
[1733799342847,0.00141223,97287.0,97286.0,0.001]
[1733799343147,0.00141223,97287.0,97286.0,0.004]
[1733799343854,0.05277823,97287.0,97286.0,0.001]
[1733799344544,0.05277823,97287.0,97286.0,0.002]
[1733799345235,0.05286083,97287.0,97286.0,0.002]
[1733799345643,0.05286083,97287.0,97286.0,0.003]
[1733799346536,0.05286083,97287.0,97286.0,0.001]
[1733799346851,0.05286083,97287.0,97286.0,0.002]
[1733799346852,0.05986083,97287.0,97286.0,0.002]
[1733799348151,0.05986083,97287.0,97286.0,1.502]
[1733799349351,0.06286083,97287.0,97286.0,1.501]
[1733799349836,0.01149483,97287.0,97286.0,1.501]
[1733799350245,0.45299057,97312.0,97286.0,1.9259]
[1733799350543,0.36168001,97312.0,97301.0,0.051358]
[1733799350849,0.00088001,97312.0,97302.0,0.051357]
[1733799351040,0.051352,97314.0,97302.0,0.051357]
[1733799351236,0.00013133,97306.0,97302.0,0.051357]
[1733799351749,0.00013133,97306.0,97298.0,0.3608]
[1733799351750,0.05148733,97306.0,97298.0,0.3608]
[1733799352447,0.051356,97305.0,97298.0,0.3608]
[1733799352643,0.051356,97305.0,97302.0,0.001]
[1733799353045,0.00713133,97306.0,97302.0,0.001]
[1733799353446,0.01613133,97306.0,97302.0,0.001]
[1733799354149,0.00713133,97306.0,97302.0,0.002]
[1733799355041,0.00613133,97306.0,97302.0,0.001]
[1733799355844,0.00013133,97306.0,97302.0,0.001]
[1733799356948,0.051357,97304.0,97302.0,0.001]
[1733799358944,0.051364,97291.0,97282.0,0.051368]
[1733799360151,0.051365,97288.0,97275.0,2.15827767]
[1733799360346,0.051368,97284.0,97275.0,2.15827767]
[1733799360648,0.1249,97294.0,97281.0,0.01113935]
[1733799360649,0.051368,97283.0,97281.0,0.01113935]
[1733799361254,0.051371,97277.0,97270.0,0.24610567]
[1733799361454,0.3608,97282.0,97262.0,0.00154218]
[1733799361455,0.051378,97263.0,97262.0,0.00154218]
[1733799361654,0.3608,97271.0,97262.0,0.00154218]
[1733799361858,0.051377,97265.0,97262.0,0.00154218]
[1733799362055,0.051378,97264.0,97262.0,0.00154218]
[1733799362958,0.051378,97264.0,97262.0,0.00354218]
[1733799363455,0.051378,97264.0,97262.0,0.00854218]
[1733799364458,0.0632,97263.0,97262.0,0.00854218]
[1733799365265,0.424,97263.0,97262.0,0.00854218]
[1733799365458,0.42410729,97263.0,97262.0,0.00654218]
[1733799365658,0.42410729,97263.0,97262.0,0.007]
[1733799366359,0.42410729,97263.0,97262.0,0.005]
[1733799366572,0.42410729,97263.0,97262.0,0.002]
[1733799366877,0.42610729,97263.0,97262.0,0.002]
[1733799367477,0.051386,97249.0,97248.0,9.795e-05]
[1733799368569,0.3608,97255.0,97248.0,9.795e-05]
[1733799368770,0.051381,97258.0,97248.0,0.05148395]
[1733799368964,0.0671873,97263.0,97248.0,9.795e-05]
[1733799368965,0.06630729,97263.0,97248.0,9.795e-05]
[1733799369171,0.00110729,97263.0,97258.0,0.3608]
[1733799369371,0.00110729,97263.0,97260.0,0.05138]
[1733799369572,0.00110729,97263.0,97261.0,0.0602]
[1733799370077,0.05138,97259.0,97258.0,0.3608]
[1733799370478,0.36090729,97263.0,97249.0,0.00056]
[1733799370674,0.36090729,97263.0,97248.0,0.00209795]
[1733799370675,0.051384,97253.0,97248.0,0.00209795]
[1733799371167,0.051386,97249.0,97248.0,9.795e-05]
[1733799372868,0.051386,97249.0,97248.0,1.50009795]
[1733799373067,0.051386,97249.0,97248.0,1.50609795]
[1733799373580,0.051386,97249.0,97248.0,0.006]
[1733799373773,0.051386,97249.0,97248.0,0.004]
[1733799374088,0.051386,97249.0,97248.0,0.006]
[1733799377870,0.3608,97255.0,97237.0,0.37227742]
[1733799378074,0.3608,97255.0,97236.0,0.00012307]
[1733799378075,0.051392,97238.0,97236.0,0.00012307]
[1733799379183,0.051392,97238.0,97237.0,0.008]
[1733799379682,0.051392,97238.0,97236.0,0.00012307]
[1733799379884,0.1308,97237.0,97236.0,0.00012307]
[1733799381177,0.1971,97237.0,97236.0,0.00012307]
[1733799381579,0.1981,97237.0,97236.0,0.00012307]
[1733799382677,0.1991,97237.0,97236.0,0.00012307]
[1733799382879,0.051399,97224.0,97214.0,0.3608]
[1733799383082,0.051411,97202.0,97200.0,0.1]
[1733799383387,0.051414,97195.0,97189.0,0.3608]
[1733799383683,0.051415,97193.0,97189.0,0.3608]
[1733799383891,0.00012821,97192.0,97189.0,0.3608]
[1733799384093,0.051416,97191.0,97189.0,0.3608]
[1733799384382,0.051416,97191.0,97180.0,0.3608]
[1733799384582,0.051416,97191.0,97181.0,1.5]
[1733799385177,0.00012821,97192.0,97184.0,0.05142]
[1733799385490,0.00012821,97192.0,97185.0,0.3608]
[1733799386582,0.00112821,97192.0,97184.0,0.008]
[1733799386779,0.051419,97185.0,97184.0,0.008]
[1733799387185,0.36280822,97192.0,97180.0,0.005]
[1733799387186,0.051421,97182.0,97180.0,0.005]
[1733799387392,0.3608,97181.0,97152.0,0.36234396]
[1733799387595,0.3608,97181.0,97136.0,0.36915851]
[1733799387596,0.3608,97153.0,97124.0,0.30763209]
[1733799387786,0.3608,97125.0,97114.0,0.0613]
[1733799388084,0.10142471,97124.0,97114.0,0.0613]
[1733799388287,0.3608,97125.0,97114.0,0.0613]
[1733799388586,9.632e-05,97124.0,97114.0,0.0613]
[1733799389298,0.10152103,97124.0,97101.0,0.01112464]
[1733799389591,0.10152103,97124.0,97080.0,0.00154511]
[1733799389592,0.051464,97101.0,97080.0,0.00154511]
[1733799389792,0.3608,97102.0,97080.0,0.00154511]
[1733799389793,0.051475,97081.0,97080.0,0.00154511]
[1733799389983,0.051475,97081.0,97075.0,0.00045]
[1733799389984,0.051477,97076.0,97075.0,0.00045]
[1733799390295,0.3608,97081.0,97042.0,0.000123]
[1733799390496,0.10142471,97060.0,97042.0,0.000123]
[1733799390679,0.3608,97072.0,97050.0,0.10142471]
[1733799390885,0.00011979,97080.0,97050.0,0.10142471]
[1733799390886,0.00011979,97080.0,97060.0,1.60142471]
[1733799391191,0.00011979,97080.0,97078.0,0.051476]
[1733799392688,0.3608,97093.0,97078.0,0.3]
[1733799392888,0.12292076,97155.0,97078.0,0.3]
[1733799392889,0.3608,97109.0,97098.0,0.051465]
[1733799393082,0.3608,97109.0,97087.0,0.051471]
[1733799393083,0.3608,97101.0,97087.0,0.051471]
[1733799393279,0.3608,97090.0,97073.0,0.3608]
[1733799393485,0.004,97080.0,97079.0,0.051476]
[1733799393684,0.004,97080.0,97073.0,0.6608]
[1733799393685,0.00010812,97093.0,97092.0,0.051469]
[1733799393985,0.00010812,97093.0,97084.0,0.051473]
[1733799394190,0.00010812,97093.0,97092.0,1.5]
[1733799394490,0.36090812,97093.0,97092.0,1.5]
[1733799395795,0.36090812,97093.0,97092.0,1.551469]
[1733799395985,0.00810812,97093.0,97092.0,1.852469]
[1733799396184,0.004,97101.0,97100.0,0.051464]
[1733799396485,0.004,97101.0,97092.0,1.801]
[1733799396486,0.3608,97106.0,97093.0,0.0652]
[1733799396686,0.3608,97106.0,97105.0,0.051462]
[1733799396887,0.3608,97106.0,97105.0,1.551462]
[1733799397084,0.3608,97106.0,97105.0,1.55158731]
[1733799397591,0.3608,97106.0,97105.0,1.50012531]
[1733799397592,0.3688,97106.0,97105.0,1.50012531]
[1733799398184,0.3758,97106.0,97105.0,1.50112531]
[1733799399285,0.3678,97106.0,97105.0,1.50112531]
[1733799399591,0.3728,97106.0,97105.0,1.50212531]
[1733799403495,0.3728,97106.0,97060.0,0.70712]
[1733799403496,0.051473,97085.0,97044.0,0.051494]
[1733799403698,0.3608,97065.0,97063.0,0.051484]
[1733799403897,0.3608,97071.0,97070.0,0.05148]
[1733799404193,0.3191,97071.0,97070.0,0.05148]
[1733799404495,0.3608,97088.0,97087.0,0.051471]
[1733799405294,0.3608,97096.0,97087.0,0.6608]
[1733799405495,0.3608,97096.0,97095.0,0.051467]
[1733799405696,0.01,97113.0,97088.0,0.0646]
[1733799405903,0.01,97113.0,97104.0,1.5]
[1733799405904,0.3608,97106.0,97104.0,1.5]
[1733799407395,0.3608,97106.0,97104.0,1.501]
[1733799407807,0.3608,97106.0,97104.0,1.552462]
[1733799408100,0.00109065,97111.0,97110.0,0.051459]
[1733799408796,9.065e-05,97111.0,97110.0,0.051459]
[1733799409386,9.065e-05,97111.0,97110.0,0.052459]
[1733799409897,0.00109065,97111.0,97110.0,0.051459]
[1733799410094,0.00109065,97111.0,97110.0,0.052459]
[1733799410489,0.00109065,97111.0,97110.0,0.051459]
[1733799410798,0.00109065,97111.0,97110.0,0.054459]
[1733799411000,0.00209065,97111.0,97110.0,0.054459]
[1733799411200,0.00209065,97111.0,97110.0,0.354459]
[1733799411708,0.00209065,97111.0,97110.0,0.054459]
[1733799412291,0.00209065,97111.0,97110.0,1.551459]
[1733799412498,0.00209065,97111.0,97110.0,1.554459]
[1733799412796,9.065e-05,97111.0,97110.0,1.554459]
[1733799414800,9.065e-05,97111.0,97110.0,1.503]
[1733799417293,9.065e-05,97111.0,97110.0,1.803]
[1733799417500,9.065e-05,97111.0,97110.0,1.503]
[1733799418997,0.09203684,97111.0,97110.0,1.503]
[1733799419198,0.09233866,97111.0,97110.0,1.503]
[1733799419493,0.09233298,97111.0,97110.0,1.503]
[1733799419694,0.05154965,97111.0,97110.0,1.503]
[1733799420199,0.17447041,97111.0,97110.0,1.503]
[1733799420396,0.23947041,97111.0,97110.0,1.503]
[1733799420597,0.11654965,97111.0,97110.0,1.503]
[1733799420801,0.06509065,97111.0,97110.0,1.503]
[1733799421695,0.12323634,97111.0,97110.0,1.503]
[1733799421999,9.065e-05,97111.0,97110.0,1.56676834]
[1733799422200,9.065e-05,97111.0,97110.0,1.86676834]
[1733799422504,0.051462,97104.0,97095.0,0.3608]
[1733799422696,0.051462,97104.0,97077.0,0.43029581]
[1733799422697,0.051489,97054.0,97043.0,0.49117236]
[1733799422902,0.7216,97044.0,97032.0,0.04506629]
[1733799423105,0.051512,97011.0,97008.0,0.00898525]
[1733799423416,0.3608,97009.0,97000.0,0.10996]
[1733799423605,0.00140001,97010.0,97008.0,1.5]
[1733799423904,0.3608,97023.0,97008.0,1.5]
[1733799423905,0.00013121,97022.0,97021.0,0.051506]
[1733799424098,0.2459318,97022.0,97021.0,0.051506]
[1733799424297,0.11770581,97025.0,97021.0,0.3]
[1733799424506,0.27628445,97030.0,97022.0,0.051506]
[1733799424697,0.3608,97059.0,97029.0,0.773102]
[1733799424899,0.20147884,97058.0,97049.0,0.15273643]
[1733799425106,0.20147884,97058.0,97057.0,0.051487]
[1733799425603,0.3608,97059.0,97057.0,0.051487]
[1733799425804,0.36144,97059.0,97057.0,0.051487]
[1733799426008,0.3608,97059.0,97057.0,0.051487]
[1733799427004,0.3608,97059.0,97057.0,0.052487]
[1733799427201,0.3608,97068.0,97067.0,0.051482]
[1733799427508,0.3608,97068.0,97067.0,0.05157765]
[1733799427810,7.93e-05,97069.0,97067.0,1.55157765]
[1733799427999,7.93e-05,97069.0,97057.0,9e-07]
[1733799428000,3e-07,97069.0,97057.0,9e-07]
[1733799428202,0.01,97058.0,97030.0,0.23552925]
[1733799428400,0.3608,97041.0,97040.0,0.051496]
[1733799428798,0.241468,97041.0,97040.0,0.051496]
[1733799429002,0.3608,97057.0,97056.0,0.051488]
[1733799429705,0.3608,97057.0,97056.0,1.551488]
[1733799430110,0.3638,97057.0,97056.0,1.551488]
[1733799431002,0.3668,97057.0,97056.0,1.551488]
[1733799432102,0.45721291,97057.0,97056.0,1.551488]
[1733799432304,0.3668,97057.0,97056.0,1.551488]
[1733799432502,0.3768,97057.0,97056.0,1.551488]
[1733799433110,0.3668,97057.0,97056.0,1.551488]
[1733799434508,0.006,97057.0,97056.0,0.051488]
[1733799434707,0.09032602,97073.0,97068.0,0.051481]
[1733799435013,0.3608,97075.0,97068.0,0.051481]
[1733799435014,0.09032602,97074.0,97068.0,0.051481]
[1733799435617,0.3608,97075.0,97068.0,0.171481]
[1733799436109,0.0050003,97069.0,97068.0,0.171481]
[1733799436707,0.0130003,97069.0,97068.0,0.172481]
[1733799436907,0.0080003,97069.0,97068.0,0.172481]
[1733799437108,0.0110003,97069.0,97068.0,0.172481]
[1733799437310,0.0060003,97069.0,97068.0,0.171481]
[1733799437909,0.0040003,97069.0,97068.0,0.171481]
[1733799438511,3e-07,97069.0,97068.0,0.171481]
[1733799438912,3e-07,97069.0,97068.0,0.471481]
[1733799439104,0.0020003,97069.0,97068.0,0.471481]
[1733799439307,0.09032402,97081.0,97080.0,0.051475]
[1733799439513,0.09032402,97081.0,97080.0,0.412275]
[1733799439909,0.09032402,97081.0,97080.0,0.532275]
[1733799440214,0.00010754,97094.0,97080.0,0.532275]
[1733799440408,0.00010754,97094.0,97093.0,0.051468]
[1733799443409,0.00410754,97094.0,97093.0,0.051468]
[1733799443613,0.00610754,97094.0,97093.0,0.051468]
[1733799444018,0.00610754,97094.0,97093.0,0.171468]
[1733799444314,0.00410754,97094.0,97093.0,0.171468]
[1733799444816,0.00210754,97094.0,97093.0,0.172468]
[1733799445612,0.00010754,97094.0,97093.0,0.172468]
[1733799445915,0.00010754,97094.0,97093.0,0.121]
[1733799446214,0.36090754,97094.0,97093.0,0.001]
[1733799447109,0.01,97081.0,97075.0,0.051477]
[1733799447420,0.01,97081.0,97058.0,0.0647]
[1733799447421,0.01,97071.0,97063.0,0.051484]
[1733799447609,0.3608,97064.0,97063.0,0.051484]
[1733799448516,0.01,97071.0,97070.0,0.05148]
[1733799449804,0.012,97071.0,97070.0,0.05148]
[1733799450516,0.01,97071.0,97070.0,0.05148]
[1733799450720,0.012,97071.0,97070.0,0.05148]
[1733799452013,0.012,97071.0,97044.0,0.051494]
[1733799452014,0.3608,97040.0,97006.0,0.32692133]